bitfinex/quotes_SOLUSD_20250612
["timestamp","ask_amount","ask_price","bid_price","bid_amount"]
[1749762557234,38.06482343,152.5,152.45,30.94330609]
[1749762557446,35.69102465,152.49,152.45,30.94330609]
[1749762557645,30.94330609,152.49,152.45,30.94330609]
[1749762558043,30.94330609,152.49,152.41,16.5410372]
[1749762558356,26.0,152.49,152.45,30.94330609]
[1749762558850,17.1923862,152.57,152.48,30.94330609]
[1749762559076,30.94330609,152.54,152.49,30.94330609]
[1749762559253,56.94330609,152.54,152.49,30.94330609]
[1749762559758,30.94330609,152.54,152.45,0.28432314]
[1749762559936,37.49908923,152.54,152.49,30.94330609]
[1749762560257,30.94330609,152.56,152.52,30.94330609]
[1749762560455,37.32260609,152.57,152.52,30.94330609]
[1749762560759,56.94330609,152.56,152.52,30.94330609]
[1749762561125,6.55265054,152.61,152.55,30.94330609]
[1749762561322,37.49595663,152.61,152.55,30.94330609]
[1749762561530,30.94330609,152.56,152.44,6.0578]
[1749762561836,30.94330609,152.48,152.44,30.94330609]
[1749762562041,26.0,152.52,152.44,30.94330609]
[1749762562042,30.94330609,152.49,152.44,30.94330609]
[1749762562237,26.0,152.52,152.47,30.94330609]
[1749762562552,30.94330609,152.51,152.46,30.94330609]
[1749762562763,32.55659252,152.52,152.46,30.94330609]
[1749762562966,63.49989861,152.52,152.47,30.94330609]
[1749762563157,30.94330609,152.51,152.46,30.94330609]
[1749762563357,32.55659252,152.52,152.48,30.94330609]
[1749762563737,26.0,152.52,152.48,30.94330609]
[1749762564865,30.94330609,152.52,152.48,30.94330609]
[1749762565064,37.49954911,152.53,152.48,30.94330609]
[1749762565569,30.94330609,152.53,152.48,30.94330609]
[1749762565744,37.49942477,152.53,152.48,30.94330609]
[1749762566664,30.94330609,152.54,152.49,30.94330609]
[1749762566859,30.94330609,152.53,152.48,30.94330609]
[1749762567041,30.94330609,152.53,152.49,30.94330609]
[1749762567369,37.49901197,152.54,152.49,30.94330609]
[1749762568443,30.94330609,152.52,152.46,33.12]
[1749762568752,30.94330609,152.53,152.48,30.94330609]
[1749762568975,30.94330609,152.53,152.49,30.94330609]
[1749762569343,30.94330609,152.52,152.47,30.94330609]
[1749762569855,30.94330609,152.53,152.48,30.94330609]
[1749762570144,30.94330609,152.54,152.49,30.94330609]
[1749762570870,30.94330609,152.52,152.46,33.12]
[1749762571074,30.94330609,152.52,152.47,30.94330609]
[1749762571638,30.94330609,152.49,152.44,9.88]
[1749762571842,30.94330609,152.51,152.46,30.94330609]
[1749762572171,37.50026492,152.51,152.46,30.94330609]
[1749762572543,1.665,152.53,152.44,9.88]
[1749762572742,30.94330609,152.51,152.44,9.88]
[1749762573078,30.94330609,152.49,152.44,40.82330609]
[1749762573257,30.94330609,152.49,152.44,9.88]
[1749762573452,30.94330609,152.49,152.44,40.82330609]
[1749762573649,32.55667501,152.52,152.44,9.88]
[1749762573650,30.94330609,152.48,152.44,9.88]
[1749762574173,37.50173911,152.48,152.44,9.88]
[1749762578185,30.94330609,152.47,152.44,9.88]
[1749762578355,26.0,152.49,152.45,30.94330609]
[1749762578660,37.49982326,152.52,152.47,30.94330609]
[1749762578841,26.0,152.51,152.47,30.94330609]
[1749762579046,63.49955853,152.53,152.49,30.94330609]
[1749762579264,32.55625244,152.53,152.49,30.94330609]
[1749762579476,63.49955853,152.53,152.49,30.94330609]
[1749762579648,30.94330609,152.51,152.46,30.94330609]
[1749762579848,30.94330609,152.49,152.45,33.06]
[1749762580053,37.50112043,152.49,152.45,33.06]
[1749762580255,37.50112043,152.49,152.44,40.82330609]
[1749762580460,30.94330609,152.49,152.45,30.94330609]
[1749762580990,37.50124616,152.49,152.45,30.94330609]
[1749762581159,37.50124616,152.49,152.44,40.82330609]
[1749762581682,32.55794007,152.49,152.44,30.94330609]
[1749762581981,56.94330609,152.49,152.44,30.94330609]
[1749762582183,32.55783811,152.49,152.44,30.94330609]
[1749762582352,63.5011442,152.49,152.44,30.94330609]
[1749762582681,56.94330609,152.49,152.44,30.94330609]
[1749762582858,63.50112782,152.49,152.44,30.94330609]
[1749762583282,56.94330609,152.49,152.45,30.94330609]
[1749762583471,26.0,152.49,152.45,30.94330609]
[1749762583651,32.55781057,152.49,152.45,30.94330609]
[1749762583850,32.55781057,152.49,152.42,0.14216157]
[1749762583851,30.94330609,152.5,152.46,30.94330609]
[1749762584079,30.94330609,152.51,152.46,30.94330609]
[1749762584280,30.94330609,152.52,152.47,30.94330609]
[1749762585390,16.38791093,152.56,152.49,30.94330609]
[1749762585565,30.94330609,152.54,152.49,30.94330609]
[1749762585772,30.94330609,152.55,152.5,30.94330609]
[1749762585974,26.0,152.54,152.5,30.94330609]
[1749762586675,26.0,152.53,152.5,30.94330609]
[1749762588586,26.0,152.53,152.51,30.94330609]
[1749762588776,30.94330609,152.56,152.51,30.94330609]
[1749762588981,56.94330609,152.56,152.51,30.94330609]
[1749762589573,6.55307994,152.6,152.52,30.94330609]
[1749762589756,38.044489,152.61,152.53,6.55608732]
[1749762589962,30.94330609,152.57,152.52,63.94330609]
[1749762590268,15.92539262,152.61,152.52,63.94330609]
[1749762590269,30.94330609,152.58,152.53,30.94330609]
[1749762591856,37.4975694,152.58,152.53,30.94330609]
[1749762593578,6.55426331,152.58,152.53,30.94330609]
[1749762593776,37.4975694,152.58,152.54,30.94330609]
[1749762594600,37.4975694,152.58,152.52,33.0]
[1749762594889,6.55426331,152.58,152.54,30.94330609]
[1749762595060,37.4975694,152.58,152.54,30.94330609]
[1749762595266,6.55426331,152.58,152.54,30.94330609]
[1749762596072,37.4975694,152.58,152.52,33.0]
[1749762596274,63.4969452,152.59,152.54,30.94330609]
[1749762596633,4.76188255,152.58,152.54,30.94330609]
[1749762596761,37.49637032,152.61,152.57,30.94330609]
[1749762596965,4.7625074,152.6,152.57,30.94330609]
[1749762597165,4.7625074,152.6,152.56,30.94330609]
[1749762597390,30.94330609,152.6,152.56,30.94330609]
[1749762597892,30.94330609,152.61,152.56,30.94330609]
[1749762598267,26.0,152.62,152.56,30.94330609]
[1749762598473,26.0,152.62,152.52,121.5]
[1749762598474,26.0,152.61,152.52,121.5]
[1749762598695,26.0,152.61,152.55,30.94330609]
[1749762598881,26.0,152.61,152.56,30.94330609]
[1749762599091,30.94330609,152.6,152.55,30.94330609]
[1749762599487,26.0,152.61,152.57,30.94330609]
[1749762599723,26.0,152.61,152.58,30.94330609]
[1749762599871,26.0,152.61,152.59,30.94330609]
[1749762600071,26.0,152.61,152.58,30.94330609]
[1749762601212,26.0,152.61,152.59,30.94330609]
[1749762601416,26.0,152.63,152.59,30.94330609]
[1749762601635,56.94330609,152.63,152.59,30.94330609]
[1749762601800,30.94330609,152.63,152.59,30.94330609]
[1749762602191,6.0774,152.65,152.58,6.55384643]
[1749762602386,4.76332183,152.66,152.64,30.94330609]
[1749762602624,4.76353906,152.69,152.65,30.94330609]
[1749762602808,7.14779296,152.72,152.68,30.94330609]
[1749762602993,26.0,152.76,152.71,30.94330609]
[1749762603191,7.14975011,152.75,152.72,30.94330609]
[1749762603392,4.76650007,152.74,152.7,30.94330609]
[1749762603689,26.0,152.72,152.65,30.94330609]
[1749762603921,26.0,152.72,152.68,30.94330609]
[1749762604156,26.13339415,152.77,152.71,30.94330609]
[1749762604321,30.94330609,152.75,152.67,32.88]
[1749762604621,30.94330609,152.71,152.67,32.88]
[1749762604803,30.94330609,152.72,152.67,63.82330609]
[1749762605216,6.54707345,152.74,152.67,63.82330609]
[1749762605509,6.54707345,152.74,152.67,32.88]
[1749762605510,30.94330609,152.71,152.67,32.88]
[1749762605711,30.94330609,152.72,152.67,63.82330609]
[1749762605912,30.94330609,152.71,152.67,63.82330609]
[1749762606214,22.91475709,152.74,152.68,30.94330609]
[1749762606391,37.49123694,152.72,152.67,63.82330609]
[1749762607024,37.49093506,152.73,152.68,30.94330609]
[1749762607209,6.54762897,152.73,152.68,30.94330609]
[1749762607521,11.31525941,152.74,152.7,30.94330609]
[1749762607697,6.54723926,152.74,152.68,30.94330609]
[1749762607901,30.94330609,152.73,152.68,30.94330609]
[1749762608331,30.94330609,152.74,152.69,30.94330609]
[1749762608503,26.0,152.76,152.69,30.94330609]
[1749762608829,26.0,152.76,152.67,0.14216157]
[1749762608830,30.94330609,152.74,152.7,30.94330609]
[1749762609033,18.64964886,152.8,152.71,30.94330609]
[1749762609332,30.94330609,152.76,152.71,30.94330609]
[1749762609534,15.87608977,152.82,152.75,30.94330609]
[1749762609711,30.94330609,152.78,152.75,32.98216157]
[1749762609901,30.94330609,152.78,152.7,32.3277]
[1749762610098,6.5297,152.82,152.76,30.94330609]
[1749762610303,23.35005809,152.83,152.76,30.94330609]
[1749762610599,30.94330609,152.82,152.77,30.94330609]
[1749762610819,30.94330609,152.82,152.71,32.98216157]
[1749762610820,30.94330609,152.78,152.71,32.98216157]
[1749762611031,30.94330609,152.74,152.7,42.58]
[1749762611207,26.0,152.79,152.72,30.94330609]
[1749762611742,30.94330609,152.77,152.73,30.94330609]
[1749762612330,30.94330609,152.77,152.72,30.94330609]
[1749762612827,30.94330609,152.76,152.72,30.94330609]
[1749762613322,56.94330609,152.8,152.75,30.94330609]
[1749762613530,30.94330609,152.8,152.75,30.94330609]
[1749762613826,26.0,152.81,152.71,19.07613357]
[1749762613827,30.94330609,152.77,152.71,19.07613357]
[1749762614001,30.94330609,152.8,152.76,30.94330609]
[1749762614197,56.94330609,152.8,152.75,30.94330609]
[1749762614403,26.0,152.8,152.75,30.94330609]
[1749762614603,56.94330609,152.8,152.75,30.94330609]
[1749762614823,26.0,152.8,152.76,30.94330609]
[1749762615029,56.94330609,152.8,152.75,30.94330609]
[1749762615212,30.94330609,152.81,152.77,30.94330609]
[1749762615412,30.94330609,152.8,152.71,18.64964886]
[1749762615615,30.94330609,152.79,152.74,30.94330609]
[1749762615930,9.79796193,152.83,152.72,0.42648471]
[1749762615931,56.94330609,152.8,152.76,30.94330609]
[1749762616341,26.0,152.8,152.76,30.94330609]
[1749762617221,26.0,152.8,152.77,30.94330609]
[1749762618036,26.0,152.8,152.76,30.94330609]
[1749762619545,30.94330609,152.81,152.76,30.94330609]
[1749762619749,6.54295194,152.84,152.77,30.94330609]
[1749762619945,26.0,152.81,152.77,30.94330609]
[1749762620323,26.0,152.81,152.75,0.42648471]
[1749762620324,6.53861552,152.94,152.83,26.0]
[1749762620647,6.5376569,152.96,152.84,65.4099]
[1749762620807,30.94330609,152.93,152.86,19.07613357]
[1749762621208,30.94330609,152.94,152.86,19.07613357]
[1749762621409,30.94330609,152.92,152.85,32.54236179]
[1749762621707,18.64964886,152.96,152.87,30.94330609]
[1749762621937,30.94330609,152.92,152.85,32.54236179]
[1749762622144,30.94330609,152.92,152.87,30.94330609]
[1749762622322,30.94330609,152.91,152.86,0.42648471]
[1749762622525,26.0,152.93,152.84,39.4099]
[1749762622830,30.94330609,152.87,152.82,56.94330609]
[1749762623042,6.54022236,152.9,152.82,26.0]
[1749762623236,6.54022236,152.9,152.82,56.94330609]
[1749762623439,6.54022236,152.9,152.76,6.4253]
[1749762623440,30.94330609,152.83,152.76,6.4253]
[1749762623655,30.94330609,152.81,152.76,12.97148769]
[1749762623842,30.94330609,152.83,152.78,30.94330609]
[1749762624040,30.94330609,152.79,152.7,6.54878847]
[1749762624252,30.94330609,152.79,152.75,30.94330609]
[1749762624779,56.94330609,152.84,152.78,30.94330609]
[1749762625051,56.94330609,152.84,152.79,30.94330609]
[1749762625759,30.94330609,152.83,152.79,30.94330609]
[1749762626059,56.94330609,152.84,152.8,30.94330609]
[1749762626440,56.94330609,152.84,152.79,30.94330609]
[1749762627051,63.48619438,152.84,152.79,30.94330609]
[1749762627241,32.54288829,152.84,152.74,19.07613357]
[1749762627435,63.48619438,152.84,152.74,19.07613357]
[1749762627635,63.48619438,152.84,152.79,30.94330609]
[1749762628240,30.94330609,152.83,152.78,30.94330609]
[1749762628562,30.94330609,152.83,152.79,30.94330609]
[1749762628860,32.54288829,152.84,152.79,30.94330609]
[1749762629048,63.48620101,152.84,152.79,30.94330609]
[1749762630557,63.48620101,152.84,152.8,30.94330609]
[1749762631057,56.94330609,152.84,152.8,30.94330609]
[1749762631243,32.54290978,152.84,152.8,30.94330609]
[1749762631564,63.48621587,152.84,152.8,30.94330609]
[1749762631759,63.48621587,152.84,152.78,30.94330609]
[1749762631760,30.94330609,152.83,152.78,30.94330609]
[1749762632564,37.48674257,152.83,152.78,30.94330609]
[1749762633064,30.94330609,152.82,152.76,32.74]
[1749762633235,37.48674257,152.83,152.78,30.94330609]
[1749762633436,37.48674257,152.83,152.76,32.74]
[1749762633635,37.48674257,152.83,152.78,30.94330609]
[1749762633851,37.48674257,152.83,152.79,30.94330609]
[1749762635654,6.54343648,152.83,152.79,30.94330609]
[1749762635854,4.70898315,152.82,152.79,30.94330609]
[1749762636057,37.48674257,152.83,152.79,30.94330609]
[1749762636256,4.7189874,152.82,152.79,30.94330609]
[1749762636461,37.48674257,152.83,152.79,30.94330609]
[1749762637544,30.94330609,152.81,152.75,0.42648471]
[1749762637767,26.0,152.84,152.75,58.36250461]
[1749762637979,4.71783254,152.83,152.75,58.36250461]
[1749762638177,4.71784093,152.82,152.81,30.94330609]
[1749762638381,26.0,152.84,152.81,30.94330609]
[1749762638563,4.71771283,152.83,152.81,30.94330609]
[1749762638759,26.0,152.84,152.8,30.94330609]
[1749762639079,4.71693486,152.83,152.8,30.94330609]
[1749762639262,26.0,152.84,152.8,30.94330609]
[1749762639463,4.7167459,152.83,152.8,30.94330609]
[1749762639796,26.0,152.84,152.81,30.94330609]
[1749762639964,4.71692709,152.83,152.8,30.94330609]
[1749762640162,26.0,152.84,152.8,30.94330609]
[1749762640368,4.71693096,152.83,152.82,30.94330609]
[1749762640572,4.71733947,152.85,152.82,30.94330609]
[1749762640775,2.35867245,152.88,152.84,30.94330609]
[1749762640965,26.0,152.86,152.84,30.94330609]
[1749762641286,4.71753097,152.85,152.81,0.42648471]
[1749762641460,26.0,152.87,152.81,0.42648471]
[1749762641659,26.0,152.87,152.83,30.94330609]
[1749762641859,4.71779029,152.86,152.83,30.94330609]
[1749762642160,4.71777072,152.85,152.83,30.94330609]
[1749762642474,26.0,152.86,152.84,30.94330609]
[1749762642681,26.0,152.86,152.83,30.94330609]
[1749762643759,4.7243445,152.85,152.83,30.94330609]
[1749762643969,26.0,152.86,152.83,30.94330609]
[1749762644691,37.48444814,152.88,152.84,30.94330609]
[1749762644989,4.72437843,152.87,152.81,0.42648471]
[1749762645169,37.48444814,152.88,152.84,30.94330609]
[1749762648186,37.48444814,152.88,152.81,6.97052876]
[1749762648358,37.48444814,152.88,152.84,30.94330609]
[1749762649066,30.94330609,152.87,152.8,32.72]
[1749762649270,30.94330609,152.87,152.82,30.94330609]
[1749762649696,30.94330609,152.86,152.82,30.94330609]
[1749762650392,6.54114205,152.88,152.82,30.94330609]
[1749762650594,6.54114205,152.88,152.81,30.94330609]
[1749762650800,11.27357473,152.88,152.82,30.94330609]
[1749762652371,11.27357473,152.88,152.79,6.97126496]
[1749762652576,35.67573877,152.87,152.83,30.94330609]
[1749762652776,4.73243268,152.87,152.83,30.94330609]
[1749762652978,4.73243268,152.87,152.79,6.97126496]
[1749762652979,35.67573877,152.87,152.79,6.97126496]
[1749762653177,34.16077415,152.89,152.85,30.94330609]
[1749762653495,4.74186583,152.88,152.85,20.53219443]
[1749762653887,4.74186583,152.88,152.84,20.53219443]
[1749762654200,20.53219443,152.88,152.84,20.53219443]
[1749762655205,34.16077415,152.89,152.84,20.53219443]
[1749762655379,34.16083913,152.89,152.84,20.53219443]
[1749762655568,54.69303356,152.89,152.84,20.53219443]
[1749762655764,26.0,152.89,152.87,20.53219443]
[1749762656077,32.59526951,152.93,152.88,20.53219443]
[1749762656078,4.74607577,152.92,152.88,20.53219443]
[1749762656272,34.054,152.93,152.88,20.53219443]
[1749762656479,4.74607577,152.92,152.84,39.66896401]
[1749762656787,20.53219443,152.92,152.88,20.53219443]
[1749762656994,54.59074938,152.93,152.88,20.53219443]
[1749762657381,64.84275608,152.93,152.88,30.78420113]
[1749762657577,30.78420113,152.92,152.87,30.78420113]
[1749762657785,6.53949485,152.92,152.84,33.12648471]
[1749762657991,6.53949485,152.92,152.82,66.5811]
[1749762658293,26.0,152.88,152.82,30.78420113]
[1749762659798,32.5413217,152.88,152.82,30.78420113]
[1749762660494,6.54032503,152.9,152.83,30.78420113]
[1749762660695,6.54032503,152.9,152.82,0.42648471]
[1749762660897,6.54032503,152.9,152.84,30.78420113]
[1749762661101,30.78420113,152.89,152.84,30.78420113]
[1749762661488,30.78420113,152.88,152.82,0.42648471]
[1749762661779,30.78420113,152.89,152.85,30.78420113]
[1749762662479,30.78420113,152.89,152.84,30.78420113]
[1749762662704,30.78420113,152.87,152.81,88.5]
[1749762662909,30.78420113,152.87,152.83,30.78420113]
[1749762663123,30.78420113,152.89,152.84,30.78420113]
[1749762663415,30.78420113,152.88,152.83,30.78420113]
[1749762663779,30.78420113,152.85,152.78,7.638]
[1749762664003,30.78420113,152.84,152.79,30.78420113]
[1749762664982,30.78420113,152.84,152.78,7.638]
[1749762665183,30.78420113,152.84,152.79,30.78420113]
[1749762665406,30.78420113,152.84,152.79,50.78420113]
[1749762665679,30.78420113,152.84,152.8,30.78420113]
[1749762665882,30.78420113,152.85,152.8,30.78420113]
[1749762667383,37.32623325,152.86,152.81,30.78420113]
[1749762667607,30.78420113,152.85,152.8,30.78420113]
[1749762667912,30.78420113,152.86,152.81,30.78420113]
[1749762668113,56.78420113,152.86,152.81,30.78420113]
[1749762668504,26.0,152.86,152.82,30.78420113]
[1749762668709,26.0,152.86,152.84,30.78420113]
[1749762669016,63.32489747,152.89,152.84,30.78420113]
[1749762669239,6.53936698,152.92,152.86,30.78420113]
[1749762669389,30.78420113,152.91,152.86,30.78420113]
[1749762669720,37.32392603,152.92,152.87,30.78420113]
[1749762669889,56.78420113,152.91,152.87,30.78420113]
[1749762670429,30.78420113,152.91,152.87,30.78420113]
[1749762670720,7.7554,152.93,152.85,0.42648471]
[1749762670721,45.07862011,152.93,152.88,30.78420113]
[1749762671015,71.07862011,152.93,152.88,30.78420113]
[1749762671219,58.30380113,152.93,152.88,30.78420113]
[1749762671397,34.05855768,152.93,152.88,30.78420113]
[1749762671802,64.84275881,152.93,152.89,30.78420113]
[1749762672013,64.84275881,152.93,152.88,30.78420113]
[1749762673224,34.05855768,152.93,152.85,0.42648471]
[1749762673519,30.78420113,152.92,152.88,30.78420113]
[1749762674491,37.32362268,152.92,152.87,30.78420113]
[1749762674691,34.05871766,152.93,152.85,0.42648471]
[1749762675017,30.78420113,152.92,152.88,30.78420113]
[1749762675215,64.84291879,152.93,152.88,30.78420113]
[1749762676020,64.84291879,152.93,152.89,30.78420113]
[1749762676219,32.53911766,152.93,152.89,30.78420113]
[1749762676437,63.32331879,152.93,152.89,30.78420113]
[1749762677133,63.32331879,152.93,152.88,30.78420113]
[1749762677635,63.32331879,152.93,152.85,95.46868919]
[1749762677929,32.53911766,152.93,152.88,30.78420113]
[1749762678135,63.32331879,152.93,152.88,30.78420113]
[1749762678433,32.53911766,152.93,152.88,30.78420113]
[1749762678738,30.78420113,152.92,152.88,30.78420113]
[1749762679529,30.78420113,152.91,152.86,30.78420113]
[1749762679716,30.28420113,152.91,152.86,30.78420113]
[1749762679914,30.78420113,152.91,152.85,88.92648471]
[1749762680116,30.78420113,152.91,152.86,30.78420113]
[1749762680117,37.32409701,152.91,152.86,30.78420113]
[1749762680841,30.78420113,152.91,152.86,30.78420113]
[1749762681141,30.78420113,152.89,152.85,88.5]
[1749762681354,20.53386614,152.86,152.79,20.0]
[1749762681504,26.0,152.88,152.81,20.53386614]
[1749762681705,46.53386614,152.88,152.8,18.64964886]
[1749762681924,46.53386614,152.88,152.82,20.53386614]
[1749762681925,20.53386614,152.87,152.82,20.53386614]
[1749762682325,20.53386614,152.83,152.79,20.0]
[1749762682621,20.53386614,152.82,152.79,20.0]
[1749762682946,20.53386614,152.8,152.79,20.0]
[1749762683314,56.84082906,152.8,152.79,20.0]
[1749762683917,63.38533167,152.8,152.79,20.0]
[1749762685617,26.0,152.8,152.79,20.0]
[1749762686444,56.84082906,152.8,152.79,20.0]
[1749762686637,26.0,152.8,152.79,20.0]
[1749762686840,56.84082906,152.8,152.79,20.0]
[1749762687346,26.0,152.8,152.79,20.0]
[1749762687517,56.84082906,152.8,152.79,20.0]
[1749762688035,26.0,152.8,152.79,20.0]
[1749762688437,56.84082906,152.8,152.79,20.0]
[1749762689637,26.0,152.8,152.79,20.0]
[1749762689829,56.84082906,152.8,152.79,20.0]
[1749762690732,26.0,152.8,152.79,20.0]
[1749762690928,30.84082906,152.82,152.79,20.0]
[1749762691128,30.84082906,152.83,152.79,20.0]
[1749762691330,30.84082906,152.82,152.79,20.0]
[1749762692143,26.0,152.83,152.8,30.84082906]
[1749762692357,7.9781,152.89,152.82,30.84082906]
[1749762692524,7.9781,152.89,152.84,30.84082906]
[1749762692721,2.38972188,152.88,152.86,30.84082906]
[1749762692937,2.3899817,152.88,152.87,30.84082906]
[1749762693143,33.23087064,152.91,152.87,30.84082906]
[1749762693340,2.39014689,152.9,152.87,30.84082906]
[1749762693533,2.39018028,152.9,152.87,30.84082906]
[1749762693717,28.39018027,152.9,152.87,30.84082906]
[1749762693922,30.84082906,152.91,152.87,30.84082906]
[1749762694232,26.0,152.9,152.86,30.84082906]
[1749762694543,26.0,152.89,152.87,30.84082906]
[1749762695224,26.0,152.89,152.84,6.54252413]
[1749762696049,26.0,152.89,152.83,32.62]
[1749762696436,56.84082906,152.89,152.84,30.84082906]
[1749762696827,26.0,152.89,152.84,30.84082906]
[1749762697028,56.84082906,152.89,152.84,30.84082906]
[1749762697242,63.38150717,152.89,152.84,30.84082906]
[1749762697443,30.84082906,152.88,152.83,63.46082906]
[1749762697642,30.84082906,152.85,152.81,30.84082906]
[1749762697841,30.84082906,152.85,152.8,30.84082906]
[1749762698032,30.84082906,152.84,152.79,50.84082906]
[1749762698960,37.38363184,152.84,152.79,50.84082906]
[1749762699259,37.38363184,152.84,152.79,20.0]
[1749762699260,30.84082906,152.83,152.79,20.0]
[1749762699629,6.54205854,152.86,152.79,20.0]
[1749762699950,30.84082906,152.85,152.8,30.84082906]
[1749762700135,30.84082906,152.84,152.8,30.84082906]
[1749762700956,6.54205854,152.86,152.8,30.84082906]
[1749762701161,30.84082906,152.84,152.8,30.84082906]
[1749762701541,6.54236706,152.85,152.8,30.84082906]
[1749762701732,30.84082906,152.84,152.8,30.84082906]
[1749762701935,30.84082906,152.84,152.79,50.84082906]
[1749762702245,6.54193379,152.86,152.79,50.84082906]
[1749762702450,30.84082906,152.84,152.79,50.84082906]
[1749762703931,30.84082906,152.83,152.79,50.84082906]
[1749762704934,30.84082906,152.83,152.79,20.0]
[1749762705268,32.54200997,152.86,152.79,20.0]
[1749762705430,30.84082906,152.84,152.79,50.84082906]
[1749762706266,30.84082906,152.83,152.79,20.0]
[1749762706453,30.84082906,152.83,152.79,50.84082906]
[1749762707263,30.84082906,152.84,152.79,50.84082906]
[1749762707467,30.84082906,152.84,152.8,30.84082906]
[1749762708054,30.84082906,152.84,152.79,50.84082906]
[1749762708983,30.84082906,152.83,152.79,20.0]
[1749762709303,6.54239516,152.85,152.79,30.84082906]
[1749762709767,30.84082906,152.84,152.79,30.84082906]
[1749762709969,30.84082906,152.84,152.79,37.38568268]
[1749762710257,30.84082906,152.84,152.79,30.84082906]
[1749762710637,30.84082906,152.83,152.79,30.84082906]
[1749762710842,30.84082906,152.83,152.77,49.8329]
[1749762711040,6.54236179,152.85,152.77,9.58]
[1749762711367,20.55275882,152.81,152.77,42.14]
[1749762712142,20.55275882,152.82,152.77,62.69275882]
[1749762712560,20.55275882,152.82,152.78,20.55275882]
[1749762712963,20.55275882,152.82,152.77,42.14]
[1749762713176,6.54236179,152.85,152.77,42.14]
[1749762713177,20.55275882,152.81,152.77,42.14]
[1749762713591,6.54236179,152.85,152.77,9.58]
[1749762713592,20.55275882,152.8,152.77,9.58]
[1749762714359,20.55275882,152.81,152.77,9.58]
[1749762715674,20.55275882,152.82,152.77,30.13275882]
[1749762715885,26.0,152.82,152.78,20.55275882]
[1749762717862,1.0,152.82,152.78,20.55275882]
[1749762718864,6.54287132,152.84,152.78,20.55275882]
[1749762719086,20.55275882,152.83,152.78,20.55275882]
[1749762720484,26.0,152.84,152.78,20.55275882]
[1749762720689,20.55275882,152.83,152.78,20.55275882]
[1749762720904,26.0,152.84,152.8,20.55275882]
[1749762721085,20.55275882,152.87,152.79,32.52]
[1749762721400,20.55275882,152.84,152.8,20.55275882]
[1749762721695,20.55275882,152.85,152.79,32.52]
[1749762722005,20.55275882,152.84,152.79,32.52]
[1749762722182,20.55275882,152.84,152.79,53.07275882]
[1749762722382,26.0,152.86,152.79,32.52]
[1749762722591,7.9766,152.9,152.83,20.55275882]
[1749762722777,20.55275882,152.88,152.83,20.55275882]
[1749762722976,26.0,152.87,152.83,20.55275882]
[1749762723505,20.55275882,152.91,152.86,20.55275882]
[1749762723909,20.55275882,152.92,152.87,20.55275882]
[1749762724200,46.55275882,152.92,152.87,20.55275882]
[1749762724404,20.55275882,152.91,152.87,20.55275882]
[1749762724568,27.0925863,152.91,152.87,20.55275882]
[1749762724773,20.55275882,152.91,152.87,20.55275882]
[1749762725175,32.53947843,152.92,152.87,20.55275882]
[1749762725471,26.0,152.92,152.88,20.55275882]
[1749762726275,26.0,152.92,152.89,20.55275882]
[1749762727815,28.64944521,152.94,152.89,20.55275882]
[1749762728505,28.64944521,152.94,152.9,20.55275882]
[1749762728506,27.09144521,152.94,152.9,20.55275882]
[1749762728705,20.55275882,152.92,152.87,32.5]
[1749762728913,20.55275882,152.91,152.87,20.55275882]
[1749762729208,20.55275882,152.92,152.87,20.55275882]
[1749762729501,20.55275882,152.92,152.88,20.55275882]
[1749762729712,20.55275882,152.92,152.87,20.55275882]
[1749762730072,6.53868639,152.94,152.89,20.55275882]
[1749762730277,6.53868639,152.94,152.9,20.55275882]
[1749762731310,27.09144521,152.94,152.9,20.55275882]
[1749762731601,6.53868639,152.94,152.9,20.55275882]
[1749762732596,26.0,152.94,152.9,20.55275882]
[1749762733779,20.55275882,152.93,152.87,0.42648471]
[1749762733982,20.55275882,152.93,152.88,20.55275882]
[1749762734196,20.55275882,152.93,152.89,20.55275882]
[1749762734602,20.55275882,152.93,152.87,0.42648471]
[1749762735118,20.55275882,152.91,152.86,9.48]
[1749762735282,32.53859743,152.94,152.87,20.55275882]
[1749762735489,20.55275882,152.92,152.87,20.55275882]
[1749762736198,27.09246493,152.92,152.86,9.48]
[1749762736401,27.09246493,152.92,152.87,20.55275882]
[1749762738418,27.09246493,152.92,152.88,20.55275882]
[1749762739920,27.09246493,152.92,152.87,20.55275882]
[1749762740618,6.54150585,152.87,152.8,20.55275882]
[1749762740924,20.55275882,152.84,152.8,20.55275882]
[1749762741509,20.55275882,152.84,152.79,20.97924353]
[1749762741704,20.55275882,152.84,152.79,20.55275882]
[1749762742525,20.55275882,152.83,152.78,88.5]
[1749762742696,27.09565209,152.84,152.79,20.55275882]
[1749762743495,20.55275882,152.82,152.77,1.5838]